Cogmind - Beta 12 @@@ ROGUE MODE // 2023.10.26 @ 07:17:45 Player: Fleshy Vegetable Bird Result: Self-destructed Performance ------------- Evolutions (2) 1000 Regions Visited (5) 1000 Robots Destroyed (44) 220 Value Destroyed (875) 875 Prototype IDs (1) 20 Alien Tech Used (0) 0 Bonus (0) 0 TOTAL SCORE: 3115 Bonus ------- None Cogmind --------- Core Integrity 148/550 Matter 206/300 Energy 20/100 System Corruption 0% Temperature Cool (0) Movement Core (350) Ox6 Location -8/Materials Parts ------- > --- POWER (1) -------- (None) > --- PROPULSION (3) --- (None) > --- UTILITY (5) ------ Large Storage Unit Machine Analyzer > --- WEAPON (2) ------- (None) > --- INVENTORY (15) --- Large Storage Unit Huge Storage Unit Authchip [Power] Authchip [Propulsion] Authchip [Weapon] Authchip [Weapon] Authchip [Weapon] Heavy EM Shotgun Heavy Assault Rifle Datajack Peak State ------------ > --- POWER ------------ Light Ion Engine > --- PROPULSION ------- Light Treads Wheel > --- UTILITY ---------- Large Storage Unit Machine Analyzer Improved Terrain Scanner Terrain Scan Processor > --- WEAPON ----------- Heavy EM Shotgun High-powered Shotgun > --- INVENTORY -------- Light Treads Light Treads Large Storage Unit Huge Storage Unit Machine Analyzer Authchip [Power] Authchip [Propulsion] Authchip [Weapon] Authchip [Weapon] Authchip [Weapon] Shock Bomb Launcher Rocket Launcher Datajack [Rating: 22] Favorites ----------- Power Ion Engine Engine Ion Engine Propulsion Wheel Treads Light Treads Wheel Wheel Utility Small Storage Unit Device Improved Terrain Scanner Storage Small Storage Unit Processor Terrain Scan Processor Weapon Small Laser Energy Gun Small Laser Energy Cannon EM Pulse Cannon Ballistic Gun Gauss Rifle Ballistic Cannon Slug Cannon Launcher Rocket Launcher Special Weapon Mining Laser Build | -11 -10 -10 -10 -9 -8 ------- Run | Jun Mat Min Exi Min Mat Slots Evolved 4 | . . . . . 4 Power . | . . . . . . Propulsion 1 | . . . . . 1 Utility 3 | . . . . . 3 Weapon . | . . . . . . Parts Attached 33 | 5 . 2 . 7 19 Power 3 | 1 . . . 1 1 Engine 3 | 1 . . . 1 1 Core . | . . . . . . Reactor . | . . . . . . Propulsion 10 | 1 . 2 . 2 5 Treads 4 | . . . . 1 3 Leg . | . . . . . . Wheel 6 | 1 . 2 . 1 2 Hover . | . . . . . . Flight . | . . . . . . Utility 7 | 1 . . . . 6 Device 1 | . . . . . 1 Storage 2 | 1 . . . . 1 Processor 4 | . . . . . 4 Hackware . | . . . . . . Protection . | . . . . . . Artifact . | . . . . . . Weapon 13 | 2 . . . 4 7 Energy Gun 5 | 2 . . . 1 2 Energy Cannon 1 | . . . . . 1 Ballistic Gun 2 | . . . . 1 1 Ballistic Cannon 1 | . . . . 1 . Launcher 3 | . . . . 1 2 Special Weapon 1 | . . . . . 1 Impact Weapon . | . . . . . . Slashing Weapon . | . . . . . . Piercing Weapon . | . . . . . . Special Melee Weapon . | . . . . . . Unidentified Prototypes 1 | . . . . . 1 Parts Lost 23 | . . . . 6 17 Power 3 | . . . . 1 2 Propulsion 9 | . . . . 2 7 Utility 2 | . . . . . 2 Weapon 9 | . . . . 3 6 Highest Loss Streak 8 | . . . . 5 8 To Critical Strikes . | . . . . . . Average Slot Usage (%) 70 | . 71 76 85 67 63 Engine 10 | . 14 14 14 13 4 Treads 6 | . . . . 12 10 Wheel 11 | . 14 19 28 7 5 Device 1 | . . . . . 4 Storage 12 | . 14 14 14 14 9 Processor 4 | . . . . . 14 Energy Gun 16 | . 28 28 28 13 3 Energy Cannon 1 | . . . . . 3 Ballistic Gun 2 | . . . . 5 4 Ballistic Cannon 1 | . . . . 1 2 Naked Turns . | . . . . . . Heaviest Build 36 | 13 13 13 13 21 36 Greatest Support 60 | 16 16 20 20 20 60 Greatest Overweight (x) 10 | . . 1 . 2 10 Average Overweight (x) . | . . . . . 1 Largest Inventory Capacity 15 | 8 8 8 8 8 15 Average Capacity 9 | 7 8 8 8 8 14 Most Carried 15 | 6 8 8 8 8 15 Average Carried 8 | 3 5 7 8 6 11 Final Capacity 15 | 8 8 8 8 8 15 Final Carried 10 | 4 8 8 8 8 10 Class Distribution -------------------- 79% | Mutant 7% | Skirmisher 7% | Commander-Mutant 3% | Scavenger-Mutant Dominant Class ---------------- Mutant | -10/Materials Mutant | -10/Mines Mutant | -10/Exiles Mutant | -9/Mines Mutant | -8/Materials Resources | -11 -10 -10 -10 -9 -8 ----------- Run | Jun Mat Min Exi Min Mat Matter Collected 761 | 250 . 20 . 164 327 Remotely . | . . . . . . Salvage Created 1284 | 180 147 223 . 143 591 Parts 74 | 14 5 16 . 2 37 Haulers Intercepted 2 | . 1 . . . 1 Recyclers Shooed 4 | 1 1 1 . . 1 Parts Field Recycled . | . . . . . . Retrieved Matter . | . . . . . . Parts Self-Destructed . | . . . . . . Prevented . | . . . . . . Kills | -11 -10 -10 -10 -9 -8 ------- Run | Jun Mat Min Exi Min Mat Combat Hostiles Destroyed 21 | . 2 5 . 5 9 Guns 10 | . 2 5 . 1 2 Cannons 4 | . . . . 1 3 AOE 7 | . . . . 3 4 Classes Destroyed 13 | 3 3 2 . 3 2 Worker 6 | 2 . 1 . . 3 Builder 3 | . . 1 . . 2 Tunneler 7 | 5 . 1 . . 1 Hauler 2 | . 1 . . . 1 Recycler 5 | 1 . 1 . 1 2 Watcher 2 | . 1 . . . 1 Swarmer 5 | . . 5 . . . Grunt 7 | . 2 . . 1 4 Duelist 2 | . . . . 1 1 Sentry 3 | . . . . . 3 Demolisher 1 | . . . . 1 . Hunter 1 | . . . . . 1 Assembled 2 | . . . . 2 . Best Kill Streak 11 | 4 3 3 . 4 11 Combat Bots Only 5 | . 2 3 . 4 5 Max Kills in Single Turn 2 | 1 1 1 . 1 2 Gunslinging . | . . . . . . Exploded 2 | . . . . 1 2 Melee . | . . . . . . Uniques/NPCs Destroyed . | . . . . . . Combat | -11 -10 -10 -10 -9 -8 -------- Run | Jun Mat Min Exi Min Mat Damage Taken 2498 | . 171 126 . 315 1886 Core 538 | . 64 33 . 39 402 Absorbed by Shields . | . . . . . . Core Remaining (%) 72 | 100 . . . 45 . Volleys Fired 120 | 18 30 17 . 16 39 Largest 2 | 2 2 2 . 2 2 Hottest 113 | 90 90 90 . 80 113 Shots Fired 214 | 34 59 34 . 30 57 Gun 167 | 34 59 34 . 20 20 Cannon 26 | . . . . 4 22 Launcher 20 | . . . . 6 14 Special 1 | . . . . . 1 Kinetic 49 | . . . . 14 35 Thermal 138 | 34 59 34 . 10 1 Explosive 18 | . . . . 6 12 Electromagnetic 9 | . . . . . 9 Robot Hit Streak 8 | 7 7 4 . 8 7 Robot Miss Streak 5 | 2 5 3 . 4 5 Penetration Max 1 | . . . . 1 . Secondary Targets 2 | . 1 1 . . . Max Gunslinging Chain 1 | . 1 1 . . . Shots Hit Robots 112 | 21 33 16 . 15 27 Core Hits 72 | 9 10 10 . 10 33 Critical Kills 1 | . . . . 1 . Critical Parts Destroyed . | . . . . . . Critical Strikes 1 | . . . . 1 . Destroy 1 | . . . . 1 . Melee Attacks . | . . . . . . Impact . | . . . . . . Slashing . | . . . . . . Piercing . | . . . . . . Sneak Attacks . | . . . . . . Combat Hostiles . | . . . . . . Follow-up Attacks . | . . . . . . Damage Inflicted 2932 | 251 405 201 . 441 1634 Guns 1284 | 251 405 201 . 161 266 Cannons 483 | . . . . 50 433 Explosions 1165 | . . . . 230 935 Melee . | . . . . . . Ramming . | . . . . . . Kinetic 742 | . . . . 154 588 Thermal 947 | 251 405 201 . 57 33 Explosive 804 | . . . . 230 574 Electromagnetic 439 | . . . . . 439 Impact . | . . . . . . Slashing . | . . . . . . Piercing . | . . . . . . Highest Corruption . | . . . . . . Average Corruption . | . . . . . . Corruption Purged . | . . . . . . Corruption Blocked . | . . . . . . Overload Shots . | . . . . . . Overflow Damage 37 | . . . . 27 10 Projectiles . | . . . . . . Explosions 37 | . . . . 27 10 Melee . | . . . . . . Knockbacks 3 | . . . . . 3 Impact . | . . . . . . Kinetic 2 | . . . . . 2 Secondary 1 | . . . . . 1 Self-Inflicted Damage 116 | . . . . 96 20 Shots 9 | . . . . 6 3 Rammed . | . . . . . . Targets Rammed . | . . . . . . Kicked . | . . . . . . Crushed . | . . . . . . Highest Temperature 217 | 150 217 150 . 45 68 Average Temperature 53 | 59 75 49 . 13 26 Received Heat Transfer 1007 | . 96 . . 20 891 Effects 1 | . 1 . . . . Interference 1 | . 1 . . . . Siege Activations . | . . . . . . Robots Corrupted . | . . . . . . Combat Hostiles . | . . . . . . Parts Fried 2 | . . . . . 2 Impact Corruptions . | . . . . . . Robots Melted . | . . . . . . Combat Hostiles . | . . . . . . Parts Melted 5 | 1 2 2 . . . Heat Transferred 2479 | 693 1066 533 . 137 50 Parts Sabotaged . | . . . . . . Parts Stolen . | . . . . . . Parts Stripped . | . . . . . . Power Chain Reactions 2 | . . . . . 2 Missiles Intercepted . | . . . . . . Alert | -11 -10 -10 -10 -9 -8 ------- Run | Jun Mat Min Exi Min Mat Peak Influence 336 | 40 135 130 . 40 336 Initial 26 | . 26 . . . 15 Average 59 | 14 98 62 . 10 84 Maximum Alert Level 1 | . . . . . 1 Low Security (%) 94 | 100 100 100 . 100 83 Level 1 5 | . . . . . 16 Level 2 . | . . . . . . Level 3 . | . . . . . . Level 4 . | . . . . . . Level 5 . | . . . . . . High Security . | . . . . . . Max Security . | . . . . . . Squads Dispatched 3 | . . . . . 3 Investigation 1 | . . . . . 1 Extermination . | . . . . . . Reinforcement 2 | . . . . . 2 Assault . | . . . . . . Garrison . | . . . . . . Intercept . | . . . . . . Searches Triggered . | . . . . . . Construction Impeded 1 | . . . . . 1 Haulers Reinforced . | . . . . . . Active Scanning Responses . | . . . . . . Cargo Convoy Interrupts . | . . . . . . Stealth | -11 -10 -10 -10 -9 -8 --------- Run | Jun Mat Min Exi Min Mat Distress Signals 1 | . . . . 1 . Communications Jammed . | . . . . . . Distress Signals . | . . . . . . Times Spotted 47 | . 7 6 . 15 19 Peak Tracking Total 12 | . 3 3 . 12 8 Tactical Retreats 2 | . . . . 2 . Traps | -11 -10 -10 -10 -9 -8 ------- Run | Jun Mat Min Exi Min Mat Traps Triggered 1 | . . . . . 1 Indirectly . | . . . . . . Trap Hack Attempts . | . . . . . . Triggered . | . . . . . . Disarmed . | . . . . . . Reprogrammed . | . . . . . . Reused 3 | . . . . . 3 Traps Extracted . | . . . . . . Installed 3 | . . . . . 3 Triggered 3 | . . . . . 3 Most Traps Carried 3 | . . . . 3 3 Machines | -11 -10 -10 -10 -9 -8 ---------- Run | Jun Mat Min Exi Min Mat Machines Disabled 4 | . . . . . 4 Max in Single Turn 2 | . . . . . 2 Machines Repaired . | . . . . . . Machines Sabotaged . | . . . . . . Overloaded Fab Kills . | . . . . . . Hacking | -11 -10 -10 -10 -9 -8 --------- Run | Jun Mat Min Exi Min Mat Machines Accessed 3 | . 2 . 1 . . Terminals 2 | . 2 . . . . Fabricators . | . . . . . . Repair Stations . | . . . . . . Recycling Units . | . . . . . . Scanalyzers . | . . . . . . Garrison Access . | . . . . . . Total Hacks 28 | . 5 . 23 . . Successful 24 | . 1 . 23 . . Failed 4 | . 4 . . . . Catastrophic . | . . . . . . Database Lockouts . | . . . . . . Manual 3 | . 3 . . . . Terminals 5 | . 5 . . . . Fabricators . | . . . . . . Repair Stations . | . . . . . . Recycling Units . | . . . . . . Scanalyzers . | . . . . . . Garrison Access . | . . . . . . Terminal Hacks 23 | . . . 23 . . Record 23 | . . . 23 . . Fabricator Hacks . | . . . . . . Repair Station Hacks . | . . . . . . Recycling Unit Hacks . | . . . . . . Scanalyzer . | . . . . . . Garrison Access Hacks . | . . . . . . Unauthorized Hacks 1 | . 1 . . . . Terminals 1 | . 1 . . . . Botnet 1 | . 1 . . . . Fabricators . | . . . . . . Repair Stations . | . . . . . . Recycling Units . | . . . . . . Scanalyzers . | . . . . . . Garrison Access . | . . . . . . Data Cores Recovered . | . . . . . . Used . | . . . . . . Hacking Detections 2 | . 2 . . . . Full Trace Events . | . . . . . . Feedback Events . | . . . . . . Feedback Blocked . | . . . . . . Robot Schematics Acquired . | . . . . . . Robots Built . | . . . . . . Authchips . | . . . . . . Time . | . . . . . . Total Robot Build Rating . | . . . . . . Part Schematics Acquired . | . . . . . . Parts Built . | . . . . . . Authchips . | . . . . . . Time . | . . . . . . Total Part Build Rating . | . . . . . . Parts Repaired . | . . . . . . Time . | . . . . . . Parts Recycled . | . . . . . . Recycled Matter . | . . . . . . Retrieved Matter . | . . . . . . Retrieved Components . | . . . . . . Parts Scanalyzed . | . . . . . . Part Schematics Acquired . | . . . . . . Parts Damaged . | . . . . . . Bothacking | -11 -10 -10 -10 -9 -8 ------------ Run | Jun Mat Min Exi Min Mat Used RIF Installer . | . . . . . . Robots Hacked . | . . . . . . Non-combat . | . . . . . . Combat . | . . . . . . Robot Hacks Applied . | . . . . . . Relay Couplers Released . | . . . . . . Fabnet Peak Effective % . | . . . . . . Robots Rewired 5 | . . . 5 . . Allies Hacked . | . . . . . . Hacks Repelled . | . . . . . . Allies | -11 -10 -10 -10 -9 -8 -------- Run | Jun Mat Min Exi Min Mat Total Allies 5 | . . . 5 . . Largest Group 5 | . . . 5 5 . Highest-Rated Group 66 | . . . 66 66 . Highest-Rated Ally 21 | . . . 21 21 . Total Orders . | . . . . . . Ally Attacks 36 | . . . . 36 . Total Damage 469 | . . . . 469 . Kills 7 | . . . . 7 . Allies Corrupted . | . . . . . . Allies Melted . | . . . . . . Intel | -11 -10 -10 -10 -9 -8 ------- Run | Jun Mat Min Exi Min Mat Robot Analysis Total . | . . . . . . Derelict Logs Recovered 1 | . . . . 1 . Drone Launches . | . . . . . . Drone Recoveries . | . . . . . . Exploration | -11 -10 -10 -10 -9 -8 ------------- Run | Jun Mat Min Exi Min Mat Turns Passed 2474 | 147 428 222 315 611 751 Spaces Moved 1610 | 85 325 182 320 334 364 Core 27 | 16 . . . 10 1 Treads 343 | . . . . 188 155 Legs . | . . . . . . Wheels 1240 | 69 325 182 320 136 208 Hover . | . . . . . . Flight . | . . . . . . Fastest Speed 50 | 50 100 80 80 80 95 Average Speed 114 | 90 100 89 80 134 156 Slowest Speed 550 | 100 100 100 80 240 550 Overloaded Moves . | . . . . . . Propulsion Burnouts . | . . . . . . Robots Hopped . | . . . . . . Cave-ins Triggered . | . . . . . . Exploration Rate (%) 45 | 4 46 44 76 71 31 Regions Visited 5 Branch Regions 3 Pre-discovered Areas 1 | . . . 1 . . Known Exits Taken . | . . . . . . Unknown Exits Taken 5 | 1 1 1 1 1 . Scrap Searched 3 | . . 1 . 2 . Spaces Dug 26 | . . . . . 26 Terrain Destroyed 127 | . . . . 42 85 Melee . | . . . . . . Projectile 8 | . . . . . 8 AOE 119 | . . . . 42 77 Terrain Rammed . | . . . . . . Walls Destroyed . | . . . . . . Machines Disabled . | . . . . . . Actions | -11 -10 -10 -10 -9 -8 --------- Run | Jun Mat Min Exi Min Mat Total 2030 | 122 369 208 378 465 488 Wait 163 | . 11 3 18 97 34 Move 1605 | 84 324 181 319 333 364 Hop . | . . . . . . Pick Up 50 | 12 4 3 . 9 22 Fast Attach . | . . . . . . Attach 29 | 5 . 2 . 6 16 Detach . | . . . . . . Swap 4 | . . . . 1 3 Drop 15 | 3 . 2 . 3 7 Fire 120 | 18 30 17 . 16 39 Melee . | . . . . . . Ram . | . . . . . . Kick . | . . . . . . Crush . | . . . . . . Escape Stasis . | . . . . . . Rewire 41 | . . . 41 . . Trap 3 | . . . . . 3 Miscellaneous . | . . . . . . Route ------- -11/Junkyard -10/Materials (discovered 3 exits: [*Mat x2] / [*Min]) -10/Mines (discovered 2 exits: [*Mat] / *Exi) -10/Exiles -9/Mines -8/Materials History --------- Turn | Location | Event 19 | -11/Junkyard | Discovered new exit (range 15) 148 | -11/Junkyard | Entered Materials 301 | -10/Materials | Build established: Mutant 314 | -10/Materials | Discovered new exit (range 5) 482 | -10/Materials | Discovered new exit (range 9) 546 | -10/Materials | Discovered new exit (range 4) 576 | -10/Materials | Entered Mines 770 | -10/Mines | Discovered new exit (range 9) 794 | -10/Mines | Deemed a non-threat by the Exiles lab entrance 795 | -10/Mines | Discovered new exit (range 5) 798 | -10/Mines | Entered Exiles 798 | -10/Exiles | Found Exiles lab destroyed 1048 | -10/Exiles | Learned location of Zion (-7) 1084 | -10/Exiles | Discovered new exit (range 14) 1113 | -10/Exiles | Entered Mines 1113 | -9/Mines | Accompanied by 5 allies 1126 | -9/Mines | Assembled infested the area 1200 | -9/Mines | Lost 5 parts (1p2n2w) 1444 | -9/Mines | Discovered new exit (range 14) 1473 | -9/Mines | Learned 2 Materials zone layouts 1489 | -9/Mines | Found a hidden stash of uninstalled traps 1553 | -9/Mines | A weapon hastily lodged in a ceiling crevice suddenly fell to the ground 1653 | -9/Mines | Core integrity fell below 50% 1724 | -9/Mines | Entered Materials 1724 | -8/Materials | Evolved 4 slots: Propulsion x1, Utility x3 1955 | -8/Materials | Lost 5 parts (1p2n2w) 2464 | -8/Materials | Core integrity fell below 50% 2475 | -8/Materials | Self-destructed Last Messages --------------- 02458_ Critical hit (Burn: +37). 02458_ G-47 Trooper destroyed. 02460_ G-47 Trooper misfires. 02460_ Critical hit (Burn: +37). 02460_ Slug penetrates Wall. 02461_ Y-45 Defender misfires. 02463_ W-25 Informer destroyed. 02463_ Heat Sink fried. 02463_ Y-45 Defender destroyed. 02463_ K-01 Serf collects debris. 02464_ Lgt. Treads destroyed. 02464_ Shock Bomb Launcher destroyed. 02467_ Penetrated by Slug. 02467_ K-01 Serf collects debris. 02470_ Penetrated by Slug. 02470_ Discarded Terrain Scan Processor. 02471_ K-01 Serf collects debris. 02472_ Critical hit (Burn: +37). 02473_ G-47 Trooper destroyed. 02474_ K-01 Serf collects debris. Map ----- +----------------------------------------------------+ | ??????????????????????????????????????"Y"????????? | | ??????????????????????????????????????"""????????? | | ?????????????????????????????????????????????????? | | ????????????????????????#????????????????????????? | | ?? ??# ??? ? ? ????????#?????????????????????? | | ?????# #?? ? ?? #??#??#????? ?????????????????? | | ?#???# ?? "??? ?? ? ??? ?? ??????????????????? | | ?????# ? "???" ## ??"????? ??????????????????? | | ?????# + ??"??" ?#?????"? ???????#?????????????? | | ?#???# ???"""""? #???""??? ?? #??????????????? | | #??### ? ?""? #? ? ? ????? ????????????????? | | #????# #? ? ?# ?""? ???? ?#??????????????? | | ?#???# #??#???#?#????"?"? ?##?? ##?????????????? | | ?? ??# #??#?##?##?# ?"" ??# ##?????????????? | | ??? # #?###?###### ? ????#? ##?????????????? | | ?/ #################+### ##????????????? | | ?? # ####??????????? | | ?# * #???#?????????? | | ?? ?# %w=[ ####??????????? | | ###### ##############h%k#### ! ##????????????? | | [ # # # #!=%#??#?????#???#?????????? | | # # """ # #%[g##?## ?????????????????? | | "" + + """ # /=! #?#??? ?#??#??????????? | | "T # # "" # """ # ##??#? ?#??#???????????? | | "" # # + """ # #??#????##?????????????? | | # = # """ # @#???#????#?????????????? | | ### ######## """?# ####? ????"???????????? | | # ####?# """?# #??#? ?????????????????? | | """ [ # #### # ###??? #??????????????? | | """ % # #### ? # ##?#??? #?? ???????????? | | """ #* # ???# ##?#??? ???????????????? | | #? # ##??# ## ?????? | | * # #?##### ##??# #####+####?????? | | = ##?##?# #???# ###?????? | | [ = ####??# ##??# ?????? | | ## ** ""##?## #???# ###?????? | | ! * ""###?# #??## #####+####?????? | | T"##??# #??## # ?????? | | ""###?# #???# # ?????? | | # ""##### #???# # ?????? | | # "" ####### ##### #""" ""?????? | | # #"R ""?????? | | """"# #""" ""?????? | | ### # # ?????? | | ##### ##################### ##########?????? | | ##?### ## ??? ?#######?????# # ?????? | | ###### ##?? ?? ? ####### # ?????? | | ?##?## #??? ? # # ?????? | | ###?## ## ???" + T + ?????? | | ###### #? """ ?# # """ """ ?????? | +----------------------------------------------------+ Best States ------------- Heat Dissipation 31 Energy Generation 10 Energy Capacity 250 Matter Stores 300 Matter Capacity 300 Sight Range 16 Terrain Scan Range 16 Terrain Scan Density 160 Evasion (%) 50 Recoil Reduction 3 Authchip Count 5 Item Schematics ----------------- None Robot Schematics ------------------ None Fabricated ------------ Nothing Alien Tech Used ----------------- None Achievements -------------- None Challenges ------------ None Game ------ Seed BlastGuidedLauncher Manual? 0 Play Time 00:19:05 Cumulative 323.7 hours Start 2023.10.24 @ 06:29:09 End 2023.10.26 @ 07:17:45 Sessions 2 Manual Loads 0 Difficulty Rogue Special Mode None Game No. 367 Rogue 367 Adventurer 0 Explorer 0 Win Type - Total 6 Types 3/1/1/1/0/0/0/0/0 Lore% 65 Gallery% 79 Achievement% 67 Wizard Run 0 Options --------- ASCII 0 Keyboard 0 Movement Numpad Keybinds 0 Fullscreen 1 Font 24/Smallcaps Map View 76x50 Tactical HUD 1 Map Filters NONE Filters NONE Steam 1 RUN: 2612952f-265e-4547-8e02-675abb698959